Cogmind - Beta 15 @@@ ROGUE MODE // 2025.05.19 @ 22:17:24 Player: jumpy Result: Destroyed by P-60 Hacker with Shock Rifle Performance ------------- Evolutions (0) 0 Regions Visited (3) 600 Robots Destroyed (22) 110 Value Destroyed (547) 547 Prototype IDs (0) 0 Alien Tech Used (0) 0 Bonus (20) 20 TOTAL SCORE: 1277 Bonus ------- Follower Combat Kills 20 Cogmind --------- Core Integrity 0/250 Matter 258/300 Energy 249/250 System Corruption 0% Temperature Cool (0) Movement Core (500) Ox9 Location -7/Recycling Parts ------- > --- POWER (1) -------- Ion Engine > --- PROPULSION (2) --- (None) > --- UTILITY (2) ------ Large Storage Unit > --- WEAPON (2) ------- Minigun > --- INVENTORY (15) --- Small Storage Unit Improved Terrain Scanner Seismic Detector Lightning Gun Heavy Particle Cannon Subdweller Machine Gun Welding Torch Flamer Peak State ------------ > --- POWER ------------ Ion Engine > --- PROPULSION ------- Light Treads Light Treads > --- UTILITY ---------- Large Storage Unit Seismic Detector > --- WEAPON ----------- Particle Gun Assault Rifle > --- INVENTORY -------- Ion Engine Wheel Compact Wheel Small Storage Unit Improved Terrain Scanner Seismic Detector Small Laser Grenade Launcher [Rating: 9] Favorites ----------- Power Ion Engine Engine Ion Engine Propulsion Light Treads Treads Light Treads Wheel Wheel Utility Seismic Detector Device Seismic Detector Storage Large Storage Unit Weapon Small Laser Energy Gun Small Laser Ballistic Gun Assault Rifle Launcher Grenade Launcher Build | -11 -10 -10 -7 ------- Run | Yrd Mat Sub Rec Slots Evolved . | . . . . Power . | . . . . Propulsion . | . . . . Utility . | . . . . Weapon . | . . . . Parts Attached 20 | 8 6 5 1 Power 4 | 1 2 1 . Engine 4 | 1 2 1 . Core . | . . . . Reactor . | . . . . Propulsion 5 | 2 1 2 . Treads 3 | 2 1 . . Leg . | . . . . Wheel 2 | . . 2 . Hover . | . . . . Flight . | . . . . Utility 3 | 2 1 . . Device 1 | 1 . . . Storage 2 | 1 1 . . Processor . | . . . . Hackware . | . . . . Protection . | . . . . Artifact . | . . . . Weapon 8 | 3 2 2 1 Energy Gun 4 | 2 2 . . Energy Cannon . | . . . . Ballistic Gun 3 | 1 . 1 1 Ballistic Cannon . | . . . . Launcher 1 | . . 1 . Special Weapon . | . . . . Impact Weapon . | . . . . Slashing Weapon . | . . . . Piercing Weapon . | . . . . Special Melee Weapon . | . . . . Unidentified Prototypes . | . . . . Parts Lost 9 | . . 6 3 Power 1 | . . 1 . Propulsion 3 | . . 2 1 Utility 1 | . . . 1 Weapon 4 | . . 3 1 Highest Loss Streak 4 | . . 4 3 To Critical Strikes 1 | . . 1 . Average Backups 6 | 2 7 6 6 Power . | . 1 . . Propulsion 1 | 1 2 . . Utility 2 | . 2 3 3 Weapon 1 | . 1 1 2 Tool/Special . | . . . . Unused Backups 5 | . . . 5 Power . | . . . . Propulsion . | . . . . Utility 2 | . . . 2 Weapon 2 | . . . 2 Tool/Special 1 | . . . 1 Average Slot Usage (%) 96 | . 100 98 85 Engine 13 | . 14 13 14 Treads 17 | . 28 9 . Wheel 8 | . . 18 14 Device 14 | . 14 14 14 Storage 14 | . 14 14 14 Energy Gun 8 | . 14 5 . Ballistic Gun 13 | . 14 13 14 Launcher 4 | . . 8 14 Peak Build Rating 9 | 7 9 8 9 Average Rating 7 | 5 7 7 8 On Entrance 5 | . 7 8 7 Naked Turns . | . . . . Heaviest Build 33 | 14 31 33 33 Greatest Support 40 | 40 40 40 10 Greatest Overweight (x) 9 | . . 3 9 Average Overweight (x) . | . . . 3 Largest Inventory Capacity 15 | 8 15 15 15 Average Capacity 14 | 7 14 15 15 Most Carried 10 | 5 10 9 8 Average Carried 6 | 3 7 6 6 Final Capacity 15 | 8 15 15 15 Final Carried 9 | 5 9 5 8 Class Distribution -------------------- 100% | Mutant Dominant Class ---------------- Mutant | -10/Materials Mutant | -10/Subcaves Mutant | -7/Recycling Resources | -11 -10 -10 -7 ----------- Run | Yrd Mat Sub Rec Matter Collected 567 | 313 129 60 65 Remotely . | . . . . Salvage Created 684 | 201 380 103 . Parts 47 | 20 18 9 . Haulers Intercepted . | . . . . Recyclers Shooed . | . . . . Parts Field Recycled . | . . . . Retrieved Matter . | . . . . Parts Self-Destructed 14 | . . 14 . Prevented . | . . . . Kills | -11 -10 -10 -7 ------- Run | Yrd Mat Sub Rec Combat Hostiles Destroyed 13 | . 9 4 . Melee 1 | . 1 . . Guns 8 | . 8 . . AOE 4 | . . 4 . Classes Destroyed 7 | 3 1 3 . Worker 1 | 1 . . . Tunneler 5 | 5 . . . Recycler 1 | 1 . . . Turret 2 | . . 2 . Swarmer 2 | . . 2 . Grunt 9 | . 9 . . Subdweller 2 | . . 2 . Best Kill Streak 2 | 2 2 2 . Combat Bots Only 2 | . 2 2 . Max Kills in Single Turn 1 | 1 1 1 . Gunslinging . | . . . . Exploded 1 | . . 1 . Melee 1 | . 1 . . Uniques/NPCs Destroyed . | . . . . Combat | -11 -10 -10 -7 -------- Run | Yrd Mat Sub Rec Hostile Shots Fired 154 | . 47 83 24 Missed 50 | . 8 36 6 Hits 104 | . 39 47 18 Projectile 104 | . 39 47 18 Critical Strikes 1 | . . 1 . Damage Taken 1380 | . 487 685 208 Core 260 | . 57 119 84 Absorbed by Shields . | . . . . Core Remaining (%) 100 | 100 . . . Volleys Fired 70 | 11 31 24 4 Largest 2 | 2 2 2 2 Hottest 70 | 60 60 70 55 Shots Fired 130 | 22 62 41 5 Gun 124 | 22 62 36 4 Cannon . | . . . . Launcher 6 | . . 5 1 Special . | . . . . Kinetic 68 | 11 31 22 4 Thermal 56 | 11 31 14 . Explosive 6 | . . 5 1 Electromagnetic . | . . . . Robot Hit Streak 12 | 4 12 11 4 Robot Miss Streak 3 | 3 3 2 1 Penetration Max . | . . . . Secondary Targets . | . . . . Shots Hit Robots 80 | 11 42 23 4 Core Hits 38 | 7 19 11 1 Critical Kills 1 | . . 1 . Critical Parts Destroyed . | . . . . Critical Strikes 1 | . . 1 . Destroy 1 | . . 1 . Melee Attacks . | . . . . Impact . | . . . . Slashing . | . . . . Piercing . | . . . . Sneak Attacks . | . . . . Combat Hostiles . | . . . . Follow-up Attacks . | . . . . Damage Inflicted 1235 | 131 530 504 70 Guns 999 | 131 516 304 48 Cannons . | . . . . Explosions 222 | . . 200 22 Melee . | . . . . Ramming 14 | . 14 . . Kinetic 617 | 97 257 215 48 Thermal 382 | 34 259 89 . Explosive 222 | . . 200 22 Electromagnetic . | . . . . Impact . | . . . . Slashing . | . . . . Piercing . | . . . . Highest Corruption . | . . . . Average Corruption . | . . . . Corruption Purged . | . . . . Corruption Blocked . | . . . . Overload Shots . | . . . . Overflow Damage 14 | . . 14 . Projectiles . | . . . . Explosions 14 | . . 14 . Melee . | . . . . Knockbacks . | . . . . Impact . | . . . . Kinetic . | . . . . Secondary . | . . . . Self-Inflicted Damage 164 | . . 124 40 Shots 5 | . . 4 1 Rammed 5 | . 5 . . Targets Rammed 6 | . 6 . . Kicked . | . . . . Crushed 1 | . 1 . . Highest Temperature 78 | . 78 1 22 Average Temperature 31 | . 33 1 13 Received Heat Transfer 462 | . 270 168 24 Siege Activations . | . . . . Martial Activations . | . . . . Shielding Activations . | . . . . Robots Disrupted . | . . . . Combat Hostiles . | . . . . Robots Corrupted . | . . . . Combat Hostiles . | . . . . Parts Fried . | . . . . Impact Corruptions . | . . . . Robots Melted . | . . . . Combat Hostiles . | . . . . Parts Melted 1 | . 1 . . Heat Transferred 850 | 75 575 200 . Parts Sabotaged . | . . . . Parts Stolen . | . . . . Parts Stripped . | . . . . Power Chain Reactions . | . . . . Alert | -11 -10 -10 -7 ------- Run | Yrd Mat Sub Rec Maximum Alert Level . | . . . . Low Security (%) 100 | 100 100 . 100 Level 1 . | . . . . Level 2 . | . . . . Level 3 . | . . . . Level 4 . | . . . . Level 5 . | . . . . High Security . | . . . . Max Security . | . . . . Peak Influence 106 | 10 106 . 26 Initial 26 | . . . 26 Average 14 | . 21 . 3 Influence Increases 455 | 35 251 140 29 Destroy 0b10 Robot/C 280 | . 180 80 20 Destroy 0b10 Robot/NC 35 | 35 . . . Destroy Leader 40 | . 40 . . Allied During Kill 1 | . . . 1 Destroy Structure 9 | . 1 . 8 Lose Combat Pursuer 90 | . 30 60 . Influence Decreases 455 | 35 181 154 85 Entered New Map 64 | . . 34 30 Time Decay 350 | 35 181 100 34 Lost Part 21 | . . 20 1 Lost Ally 20 | . . . 20 Squads Dispatched 1 | . 1 . . Investigation . | . . . . Extermination . | . . . . Reinforcement 1 | . 1 . . Assault . | . . . . Garrison . | . . . . Intercept . | . . . . Searches Triggered . | . . . . Construction Impeded . | . . . . Haulers Reinforced . | . . . . Active Scanning Responses . | . . . . Cargo Convoy Interrupts . | . . . . Stealth | -11 -10 -10 -7 --------- Run | Yrd Mat Sub Rec Distress Signals 4 | . 4 . . Communications Jammed . | . . . . Distress Signals . | . . . . Times Spotted 29 | . 17 9 3 Peak Tracking Total 5 | . 5 2 2 Tactical Retreats 3 | . 1 2 . Traps | -11 -10 -10 -7 ------- Run | Yrd Mat Sub Rec Traps Triggered . | . . . . Indirectly . | . . . . Trap Hack Attempts . | . . . . Triggered . | . . . . Disarmed . | . . . . Reprogrammed . | . . . . Reused . | . . . . Traps Extracted . | . . . . Installed . | . . . . Triggered . | . . . . Machines | -11 -10 -10 -7 ---------- Run | Yrd Mat Sub Rec Machines Disabled 2 | . . 2 . Max in Single Turn 1 | . . 1 . Machines Repaired . | . . . . Machines Dismantled . | . . . . Machines Sabotaged . | . . . . Overloaded Fab Kills . | . . . . Hacking | -11 -10 -10 -7 --------- Run | Yrd Mat Sub Rec Machines Accessed 2 | . . 2 . Terminals . | . . . . Fabricators . | . . . . Repair Stations . | . . . . Recycling Units . | . . . . Scanalyzers . | . . . . Garrison Access . | . . . . Total Hacks 2 | . . 2 . Successful 2 | . . 2 . Failed . | . . . . Catastrophic . | . . . . Database Lockouts . | . . . . Manual . | . . . . Terminals . | . . . . Fabricators . | . . . . Repair Stations . | . . . . Recycling Units . | . . . . Scanalyzers . | . . . . Garrison Access . | . . . . Terminal Hacks 2 | . . 2 . Record 1 | . . 1 . Open Door 1 | . . 1 . Fabricator Hacks . | . . . . Repair Station Hacks . | . . . . Recycling Unit Hacks . | . . . . Scanalyzer . | . . . . Garrison Access Hacks . | . . . . Unauthorized Hacks . | . . . . Terminals . | . . . . Fabricators . | . . . . Repair Stations . | . . . . Recycling Units . | . . . . Scanalyzers . | . . . . Garrison Access . | . . . . Data Cores Recovered . | . . . . Used . | . . . . Hacking Detections . | . . . . Full Trace Events . | . . . . Feedback Events . | . . . . Feedback Blocked . | . . . . Robot Schematics Acquired . | . . . . Robots Built . | . . . . Authchips . | . . . . Time . | . . . . Total Robot Build Rating . | . . . . Part Schematics Acquired . | . . . . Parts Built . | . . . . Authchips . | . . . . Time . | . . . . Total Part Build Rating . | . . . . Parts Repaired . | . . . . Time . | . . . . Parts Recycled . | . . . . Recycled Matter . | . . . . Retrieved Matter . | . . . . Retrieved Components . | . . . . Parts Scanalyzed . | . . . . Part Schematics Acquired . | . . . . Parts Damaged . | . . . . Bothacking | -11 -10 -10 -7 ------------ Run | Yrd Mat Sub Rec Used RIF Installer . | . . . . Robots Hacked . | . . . . Non-combat . | . . . . Combat . | . . . . Robot Hacks Applied . | . . . . Relay Couplers Released . | . . . . Fabnet Peak Effective % . | . . . . Robots Rewired 1 | . . . 1 Allies Hacked . | . . . . Hacks Repelled . | . . . . Allies | -11 -10 -10 -7 -------- Run | Yrd Mat Sub Rec Total Allies 1 | . . . 1 Largest Group 1 | . . . 1 Highest-Rated Group 16 | . . . 16 Highest-Rated Ally 16 | . . . 16 Total Orders . | . . . . Ally Attacks 2 | . . . 2 Total Damage 33 | . . . 33 Kills 1 | . . . 1 Allies Corrupted . | . . . . Allies Melted . | . . . . Intel | -11 -10 -10 -7 ------- Run | Yrd Mat Sub Rec Active Infowar (turns) 1952 | 67 981 606 298 Seismic 1952 | 67 981 606 298 Robot Analysis Total . | . . . . Derelict Logs Recovered . | . . . . Drone Launches . | . . . . Drone Recoveries . | . . . . Exploration | -11 -10 -10 -7 ------------- Run | Yrd Mat Sub Rec Turns Passed 2077 | 186 981 606 304 Spaces Moved 1190 | 90 435 441 224 Core 7 | 6 . . 1 Treads 619 | 84 435 100 . Legs . | . . . . Wheels 564 | . . 341 223 Hover . | . . . . Flight . | . . . . Fastest Speed 50 | 50 160 105 125 Average Speed 137 | 152 160 118 126 Slowest Speed 500 | 160 160 160 500 Overloaded Moves . | . . . . Propulsion Burnouts . | . . . . Robots Hopped . | . . . . Potential Cave-ins . | . . . . Cave-ins Triggered . | . . . . Exploration Rate (%) 34 | 6 52 26 53 Regions Visited 3 Branch Regions 2 Pre-discovered Areas . | . . . . Known Exits Taken . | . . . . Unknown Exits Taken 3 | 1 1 1 . Scrap Searched . | . . . . Spaces Dug . | . . . . Terrain Destroyed 42 | . . 35 7 Melee . | . . . . Projectile . | . . . . AOE 42 | . . 35 7 Terrain Rammed . | . . . . Walls Destroyed . | . . . . Machines Disabled . | . . . . Actions | -11 -10 -10 -7 --------- Run | Yrd Mat Sub Rec Total 1492 | 113 653 482 244 Wait 180 | . 171 9 . Move 1187 | 89 434 440 224 Hop . | . . . . Pick Up 10 | 5 2 1 2 Fast Attach 8 | 7 . 1 . Attach 4 | . . 4 . Detach . | . . . . Swap 10 | 1 6 2 1 Drop 4 | . 3 1 . Fire 70 | 11 31 24 4 Melee . | . . . . Ram . | . . . . Kick . | . . . . Crush 6 | . 6 . . Escape Stasis . | . . . . Rewire 13 | . . . 13 Trap . | . . . . Miscellaneous . | . . . . Route ------- -11/Scrapyard -10/Materials (discovered 3 exits: [*Mat] / [*Min] / *Sub) -10/Subcaves (discovered 2 exits: [*Mat] / [*Rec]) -7/Recycling (discovered 1 exit: [*Fac]) History --------- Turn | Location | Event 52 | -11/Scrapyard | Discovered new exit (range 16) 187 | -11/Scrapyard | Entered Materials 311 | -10/Materials | Build established: Mutant 769 | -10/Materials | Discovered new exit (range 6) 1067 | -10/Materials | Discovered new exit (range 10) 1107 | -10/Materials | Discovered new exit (range 8) 1168 | -10/Materials | Entered Subcaves 1384 | -10/Subcaves | Lost 4 parts (1p1n2w) 1387 | -10/Subcaves | Shifting Twisted Machinery released Flamer 1390 | -10/Subcaves | Shifting Twisted Machinery released Sub. Beam Cannon 1569 | -10/Subcaves | Discovered new exit (range 13) 1698 | -10/Subcaves | Core integrity fell below 50% 1700 | -10/Subcaves | Discovered new exit (range 12) 1774 | -10/Subcaves | Entered Recycling 1775 | -7/Recycling | Joined Warlord attack on 0b10 via Recycling 1942 | -7/Recycling | Core integrity fell below 20% 1980 | -7/Recycling | Discovered new exit (range 16) 2078 | -7/Recycling | Destroyed by P-60 Hacker with Shock Rifle Last Messages --------------- 01879_ Acquired 65 matter. 01888_ Acquired Lightning Gun. 01948_ The unstable cave ceiling collapses. 01980_ EXIT=FOUND 02052_ Attempting to rewire G-47 Trooper. 02059_ G-47 Trooper rewired. 02062_ Acquired Hvy. Particle Cannon. 02065_ Attempting to rewire B-48 Gladiator. 02068_ S-27 Virus springs to life. 02069_ S-27 Virus suffers critical hit (Burn). 02069_ S-27 Virus destroyed. 02069_ Attempting to rewire B-48 Gladiator. 02069_ P-60 Hacker springs to life. 02069_ Y-54 Guardian springs to life. 02072_ Trooper 4a destroyed. 02072_ Seismic Detector destroyed. 02074_ R-06 Scavenger collects Imp. Heat Sink. 02075_ R-06 Scavenger collects Lgt. Nuclear Core. 02075_ Wheel destroyed. 02075_ Grenade Launcher destroyed. Map ----- +----------------------------------------------------+ | ?????????????????????????????????????????????????? | | ?????????????????????????????????????????????????? | | ?????????????????????????????????????????????????? | | ?????????????????????????????????????????????????? | | ?????????????????????????????????????????????????? | | ?????????????????????????????????????????????????? | | ?????????????????????????????????????????????????? | | ?????????????????????????????????????????????????? | | ?????????????????? ????????????????????????????? | | ?????????????????? ???????????????????????????? | | ?????????????????? =???????????????????????????? | | ?????????????????# #???????????????????????????? | | ?????????????????# #???????????????????????????? | | ?????????????????# #???????????????????????????? | | ?????????????????# #???????????????????????????? | | ?????????????????# #???????????????????????????? | | ?????????????????+ #???????????????????????????? | | ?????????????????# #???????????????????????????? | | ?????????????????# #???????????????????????????? | | ?????????????????# ###########?????????????????? | | ##???????????????# # =%p! #?????????????????? | | #???????????????# # [ g #?????????????????? | | #####???????????# # u #?????????????????? | | # #???????????# #r Y #?????????????????? | | # #??########## # r] ! g #?????????????????? | | # #?? # #% @gr #?????????????????? | | !# #?# # + b %!i#?????????????????? | | # #? # # t] l p#?????????????????? | | / #?" # ###########?????????????????? | | # #?" """"" # #???##??????????????????????? | | %# #"" """"" # #?## ######?????????????????? | | # #"" """"" # # #?????????????????? | | # #"T # # #?????????????????? | | # #"" """"" + + #?????????????????? | | # #"" """"" # # #?????????????????? | | ## #"" """"" # # #?????????????????? | | ## #"" # + #?????????????????? | | ?# #" "" # # #?????????????????? | | ## ### Y" # # #?????????????????? | | # "" # #?#########?????????????????? | | # ###?????????????????????????? | | # ######+## #%################??????????? | | #####????# #??????????? | | ###+########??# < #??????????? | | #??#### #??????????? | | """" """"" #???#######+#########+######??????????? | | """" """"" #???# #?# #??????????? | | """" """"" #??# #?# ##??????????? | | #??## #?# #???????????? | | """" """"" #???# #?# #???????????? | +----------------------------------------------------+ Best States ------------- Heat Dissipation 25 Energy Generation 10 Energy Capacity 250 Matter Stores 300 Matter Capacity 300 Sight Range 16 Terrain Scan Density 10 Evasion (%) 40 Recoil Reduction 2 Item Schematics ----------------- None Robot Schematics ------------------ None Fabricated ------------ Nothing Repaired ---------- Nothing Alien Tech Used ----------------- None Achievements -------------- None Challenges ------------ None Game ------ Seed GuidedTowerMinigun Manual? 0 Play Time 00:10:06 Cumulative 103.3 hours Start 2025.05.19 @ 22:06:10 End 2025.05.19 @ 22:17:24 Sessions 1 Manual Loads 0 Difficulty Rogue Special Mode None Game No. 272 Rogue 272 Adventurer 0 Explorer 0 Win Type - Total 2 Types 2/0/0/0/0/0/0/0/0/0 Lore% 50 Gallery% 49 Achievement% 42 Wizard Run 0 Options --------- Layout 0 ASCII 0 Keyboard 0 Movement Numpad Keybinds 0 Fullscreen 2 Font 18/Terminus Map View 76x50 Zoom Use 0% Tactical HUD 1 Map Filters NONE Filters NONE Steam 1 RUN: 3da12db2-9b90-47a2-9b17-d8409858a144